fUSD/lending_fUSD_20241203
["ID","MTS","AMOUNT","RATE_DAILY","PERIOD"]
[344058348,1733257318368,346.948475,0.00023,120]
[344058359,1733257589115,323.52,6.578e-05,2]
[344058396,1733257734686,388.0,7.108e-05,2]
[344058429,1733257780730,250.0,6.579e-05,2]
[344058455,1733257834643,-1219.778,7.252e-05,2]
[344058456,1733257834656,-1076.222,7.3e-05,2]
[344058457,1733257834682,-387.645,7.3e-05,2]
[344058458,1733257834698,-1036.133,7.3e-05,2]
[344058459,1733257834711,-554.16687437,7.399e-05,2]
[344058460,1733257834724,-210.51084096,7.399e-05,2]
[344058461,1733257834737,-500.0,7.399e-05,2]
[344058462,1733257834750,-430.40386068,7.399e-05,2]
[344058463,1733257834763,-314.94531427,7.399e-05,2]
[344058464,1733257834777,-150.0,7.399e-05,2]
[344058465,1733257834790,-3028.00090129,7.399e-05,2]
[344058466,1733257834802,-220703.78806819,7.4e-05,2]
[344058467,1733257834837,-655.9999996,7.4e-05,2]
[344058468,1733257834886,-76640.21193221,7.4e-05,2]
[344058469,1733257834896,-32564.21884529,7.4e-05,2]
[344058470,1733257834908,-1832.1416959,7.4e-05,2]
[344058471,1733257834919,-1859.46357618,7.4e-05,2]
[344058472,1733257834931,-1860.72336847,7.4e-05,2]
[344058473,1733257834942,-1555.48465078,7.4e-05,2]
[344058477,1733257837613,-1294.5281733,7.4e-05,2]
[344058478,1733257837625,-12710219.98969008,7.4e-05,2]
[344058479,1733257837634,-150.0,7.429e-05,2]
[344058480,1733257837643,-56409.11748558,7.429e-05,2]
[344058481,1733257837655,-259.75097292,7.429e-05,2]
[344058482,1733257837664,-1949.99912462,7.429e-05,2]
[344058483,1733257837675,-150.0,7.43e-05,2]
[344058484,1733257837685,-150.0,7.433e-05,2]
[344058485,1733257837694,-150.0,7.437e-05,2]
[344058486,1733257837704,-150.0,7.437e-05,2]
[344058487,1733257837713,-150.0,7.439e-05,2]
[344058488,1733257837722,-150.0,7.439e-05,2]
[344058489,1733257837732,-150.0,7.441e-05,2]
[344058490,1733257837741,-150.0,7.447e-05,2]
[344058491,1733257837751,-150.0,7.45e-05,2]
[344058492,1733257837760,-150.0,7.452e-05,2]
[344058493,1733257837770,-150.0,7.452e-05,2]
[344058494,1733257837779,-150.0,7.456e-05,2]
[344058495,1733257837789,-150.0,7.459e-05,2]
[344058496,1733257837799,-150.0,7.464e-05,2]
[344058497,1733257837810,-150.0,7.464e-05,2]
[344058498,1733257837819,-150.0,7.464e-05,2]
[344058499,1733257837829,-150.0,7.468e-05,2]
[344058500,1733257837838,-150.0,7.468e-05,2]
[344058501,1733257837848,-150.0,7.471e-05,2]
[344058502,1733257837858,-150.0,7.477e-05,2]
[344058504,1733257837867,-150.0,7.478e-05,2]
[344058505,1733257837877,-150.0,7.478e-05,2]
[344058506,1733257837887,-150.0,7.482e-05,2]
[344058507,1733257837897,-150.0,7.484e-05,2]
[344058508,1733257837907,-150.0,7.487e-05,2]
[344058509,1733257837916,-150.0,7.488e-05,2]
[344058511,1733257837926,-150.0,7.489e-05,2]
[344058513,1733257837935,-150.0,7.495e-05,2]
[344058514,1733257837945,-150.0,7.5e-05,2]
[344058515,1733257837954,-150.0,7.506e-05,2]
[344058516,1733257837964,-150.0,7.506e-05,2]
[344058517,1733257837973,-150.0,7.506e-05,2]
[344058518,1733257837982,-150.0,7.508e-05,2]
[344058520,1733257837991,-150.0,7.512e-05,2]
[344058521,1733257838001,-150.0,7.513e-05,2]
[344058522,1733257838011,-150.0,7.513e-05,2]
[344058523,1733257838020,-150.0,7.517e-05,2]
[344058524,1733257838030,-150.0,7.52e-05,2]
[344058525,1733257838040,-150.0,7.52e-05,2]
[344058526,1733257838049,-150.0,7.52e-05,2]
[344058527,1733257838061,-150.0,7.521e-05,2]
[344058528,1733257838071,-150.0,7.523e-05,2]
[344058529,1733257838081,-150.0,7.525e-05,2]
[344058530,1733257838091,-150.0,7.527e-05,2]
[344058531,1733257838102,-150.0,7.529e-05,2]
[344058532,1733257838111,-150.0,7.53e-05,2]
[344058533,1733257838121,-150.0,7.53e-05,2]
[344058534,1733257838130,-150.0,7.533e-05,2]
[344058535,1733257838140,-150.0,7.535e-05,2]
[344058536,1733257838151,-150.0,7.538e-05,2]
[344058537,1733257838163,-150.0,7.547e-05,2]
[344058538,1733257838173,-150.0,7.561e-05,2]
[344058539,1733257838183,-56409.11748556,7.565e-05,2]
[344058540,1733257838193,-259.75097291,7.565e-05,2]
[344058541,1733257838203,-1949.9991246,7.565e-05,2]
[344058542,1733257838213,-150.0,7.565e-05,2]
[344058543,1733257838223,-150.0,7.566e-05,2]
[344058544,1733257838234,-150.0,7.569e-05,2]
[344058545,1733257838244,-150.0,7.578e-05,2]
[344058546,1733257838254,-150.0,7.583e-05,2]
[344058547,1733257838263,-150.0,7.585e-05,2]
[344058548,1733257838273,-150.0,7.588e-05,2]
[344058549,1733257838283,-150.0,7.588e-05,2]
[344058550,1733257838293,-150.0,7.589e-05,2]
[344058551,1733257838302,-150.0,7.596e-05,2]
[344058552,1733257838314,-150.0,7.599e-05,2]
[344058553,1733257838324,-89376.36549955,7.6e-05,2]
[344058554,1733257838334,-150.0,7.603e-05,2]
[344058555,1733257838343,-150.0,7.603e-05,2]
[344058556,1733257838353,-150.0,7.611e-05,2]
[344058557,1733257838363,-150.0,7.615e-05,2]
[344058558,1733257838373,-150.0,7.622e-05,2]
[344058559,1733257838382,-150.0,7.625e-05,2]
[344058560,1733257838391,-150.0,7.627e-05,2]
[344058561,1733257838401,-150.0,7.633e-05,2]
[344058562,1733257838411,-150.0,7.637e-05,2]
[344058563,1733257838420,-150.0,7.638e-05,2]
[344058564,1733257838429,-150.0,7.641e-05,2]
[344058565,1733257838439,-150.0,7.642e-05,2]
[344058566,1733257838448,-150.0,7.644e-05,2]
[344058567,1733257838458,-150.0,7.644e-05,2]
[344058568,1733257838468,-150.0,7.647e-05,2]
[344058569,1733257838478,-150.0,7.648e-05,2]
[344058570,1733257838487,-150.0,7.654e-05,2]
[344058571,1733257838497,-150.0,7.658e-05,2]
[344058572,1733257838507,-150.0,7.659e-05,2]
[344058573,1733257838516,-150.0,7.664e-05,2]
[344058574,1733257838526,-150.0,7.669e-05,2]
[344058575,1733257838536,-150.0,7.673e-05,2]
[344058576,1733257838546,-150.0,7.677e-05,2]
[344058577,1733257838557,-150.0,7.679e-05,2]
[344058578,1733257838566,-150.0,7.68e-05,2]
[344058579,1733257838577,-200.0,7.681e-05,2]
[344058580,1733257838586,-200.0,7.682e-05,2]
[344058581,1733257838596,-150.0,7.686e-05,2]
[344058582,1733257838606,-200.0,7.686e-05,2]
[344058583,1733257838615,-150.0,7.687e-05,2]
[344058584,1733257838624,-150.0,7.687e-05,2]
[344058585,1733257838634,-150.0,7.691e-05,2]
[344058586,1733257838644,-2303.7431159,7.691e-05,2]
[344058587,1733257838653,-1270.6950377,7.691e-05,2]
[344058588,1733257838662,-234.8491544,7.691e-05,2]
[344058589,1733257838672,-234.8491544,7.695e-05,2]
[344058590,1733257838682,-150.0,7.696e-05,2]
[344058591,1733257838691,-150.0,7.696e-05,2]
[344058592,1733257838701,-150.0,7.697e-05,2]
[344058593,1733257838710,-150.0,7.698e-05,2]
[344058594,1733257838719,-10370.41601286,7.698e-05,2]
[344058595,1733257838729,-150.0,7.699e-05,2]
[344058596,1733257838738,-1105.05366584,7.699e-05,2]
[344058597,1733257838748,-44479.46959867,7.699e-05,2]
[344058598,1733257838758,-2297701.97602481,7.7e-05,2]
[344058599,1733257838936,-876.12289446,7.7e-05,2]
[344058607,1733257840009,-982.33669999,7.7e-05,2]
[344058625,1733257842592,-10951.15867767,7.7e-05,2]
[344058626,1733257842631,-8503.8839785,7.7e-05,2]
[344058627,1733257842838,-1939.09710966,7.7e-05,2]
[344058628,1733257842849,-10038.75691268,7.7e-05,2]
[344058629,1733257842860,-508.515019,7.7e-05,2]
[344058630,1733257842948,-63551.68019535,7.7e-05,2]
[344058634,1733257845980,-899.6829897,7.7e-05,2]
[344058635,1733257845993,-2706.881927,7.7e-05,2]
[344058636,1733257846008,-1068.58,7.7e-05,2]
[344058637,1733257846019,-690.45164617,7.7e-05,2]
[344058638,1733257909386,200.0,7e-05,2]
[344058639,1733257911854,500.0,7.1e-05,2]
[344058642,1733258054855,167.27,6.889e-05,2]
[344058643,1733258408864,1979.09,6.752e-05,2]
[344058644,1733258528651,5347.61,6.576e-05,2]
[344058645,1733258557170,250.0,6.576e-05,2]
[344058646,1733258576366,154.05,5.262e-05,2]
[344058647,1733258651280,4152.35,6.577e-05,2]
[344058648,1733258694622,298.28,6.582e-05,2]
[344058649,1733258720888,8564.51,6.582e-05,2]
[344058657,1733258828306,200.0,7e-05,2]
[344058658,1733258830241,500.0,7.1e-05,2]
[344058668,1733258839949,7940.75,6.58e-05,2]
[344058678,1733259015077,489.24,6.58e-05,2]
[344058688,1733259031761,-800.0,7.2e-05,2]
[344058689,1733259031772,-1000.0,7.3e-05,2]
[344058690,1733259031781,-8960.5362211,7.3e-05,2]
[344058691,1733259031791,-150.0,7.397e-05,2]
[344058692,1733259031799,-1300.0,7.4e-05,2]
[344058693,1733259031810,-298.28,7.405e-05,2]
[344058694,1733259031822,-150.0,7.433e-05,2]
[344058695,1733259031833,-150.0,7.435e-05,2]
[344058696,1733259031843,-150.0,7.435e-05,2]
[344058697,1733259031854,-150.0,7.443e-05,2]
[344058698,1733259031865,-150.0,7.444e-05,2]
[344058699,1733259031874,-150.0,7.447e-05,2]
[344058700,1733259031883,-150.0,7.449e-05,2]
[344058701,1733259031892,-150.0,7.449e-05,2]
[344058702,1733259031902,-150.0,7.451e-05,2]
[344058703,1733259031912,-150.0,7.453e-05,2]
[344058704,1733259031922,-150.0,7.454e-05,2]
[344058705,1733259031931,-150.0,7.455e-05,2]
[344058706,1733259031940,-150.0,7.456e-05,2]
[344058707,1733259031950,-150.0,7.464e-05,2]
[344058708,1733259031960,-150.0,7.47e-05,2]
[344058709,1733259031970,-150.0,7.477e-05,2]
[344058710,1733259031979,-150.0,7.477e-05,2]
[344058711,1733259031988,-150.0,7.486e-05,2]
[344058712,1733259031997,-150.0,7.49e-05,2]
[344058713,1733259032006,-150.0,7.493e-05,2]
[344058714,1733259032017,-150.0,7.494e-05,2]
[344058715,1733259032026,-150.0,7.496e-05,2]
[344058716,1733259032035,-300.0,7.499e-05,2]
[344058717,1733259032044,-150.0,7.5e-05,2]
[344058718,1733259032053,-150.0,7.5e-05,2]
[344058719,1733259032063,-200.0,7.5e-05,2]
[344058720,1733259032072,-150.0,7.5e-05,2]
[344058721,1733259032082,-150.0,7.502e-05,2]
[344058722,1733259032091,-150.0,7.505e-05,2]
[344058723,1733259032100,-150.0,7.505e-05,2]
[344058724,1733259032109,-150.0,7.506e-05,2]
[344058725,1733259032118,-150.0,7.506e-05,2]
[344058726,1733259032128,-418.7016,7.506e-05,2]
[344058727,1733259032137,-264.3991,7.506e-05,2]
[344058728,1733259032147,-2898.6916,7.506e-05,2]
[344058729,1733259032156,-150.0,7.508e-05,2]
[344058731,1733259032166,-150.0,7.51e-05,2]
[344058733,1733259032175,-150.0,7.516e-05,2]
[344058735,1733259032184,-150.0,7.518e-05,2]
[344058736,1733259032194,-150.0,7.521e-05,2]
[344058737,1733259032203,-150.0,7.524e-05,2]
[344058738,1733259032212,-150.0,7.524e-05,2]
[344058740,1733259032222,-150.0,7.527e-05,2]
[344058742,1733259032231,-150.0,7.528e-05,2]
[344058743,1733259032240,-150.0,7.53e-05,2]
[344058745,1733259032250,-150.0,7.532e-05,2]
[344058746,1733259032260,-150.0,7.537e-05,2]
[344058747,1733259032274,-150.0,7.541e-05,2]
[344058749,1733259032285,-150.0,7.542e-05,2]
[344058751,1733259032294,-150.0,7.542e-05,2]
[344058752,1733259032303,-150.0,7.544e-05,2]
[344058753,1733259032312,-150.0,7.545e-05,2]
[344058754,1733259032321,-150.0,7.545e-05,2]
[344058755,1733259032331,-150.0,7.547e-05,2]
[344058756,1733259032340,-150.0,7.55e-05,2]
[344058757,1733259032349,-150.0,7.55e-05,2]
[344058758,1733259032359,-150.0,7.553e-05,2]
[344058759,1733259032368,-150.0,7.555e-05,2]
[344058760,1733259032378,-150.0,7.565e-05,2]
[344058761,1733259032388,-150.0,7.572e-05,2]
[344058762,1733259032398,-150.0,7.575e-05,2]
[344058763,1733259032407,-150.0,7.576e-05,2]
[344058764,1733259032417,-150.0,7.578e-05,2]
[344058765,1733259032426,-150.0,7.579e-05,2]
[344058766,1733259032435,-150.0,7.58e-05,2]
[344058767,1733259032445,-150.0,7.582e-05,2]
[344058768,1733259032454,-150.0,7.585e-05,2]
[344058769,1733259032463,-150.0,7.587e-05,2]
[344058770,1733259032473,-150.0,7.592e-05,2]
[344058771,1733259032483,-150.0,7.598e-05,2]
[344058772,1733259032492,-26043.0376789,7.6e-05,2]
[344058773,1733259032505,-888.43182854,7.6e-05,2]
[344058774,1733259032536,-477.1600351,7.6e-05,2]
[344058775,1733259032547,-538.88,7.6e-05,2]
[344058776,1733259032559,-11136.376186,7.6e-05,2]
[344058777,1733259032591,-20499.60000001,7.6e-05,2]
[344058778,1733259032607,-1304.65,7.6e-05,2]
[344058779,1733259032639,-1667.11817297,7.6e-05,2]
[344058780,1733259032669,-1696.92434782,7.6e-05,2]
[344058781,1733259032681,-5.30205066,7.6e-05,2]
[344058782,1733259032690,-685.1751896,7.6e-05,2]
[344058783,1733259032703,-970.01,7.6e-05,2]
[344058787,1733259037694,-844.8148104,7.6e-05,2]
[344058788,1733259037704,-200.0,7.6e-05,2]
[344058789,1733259037713,-1105.0,7.6e-05,2]
[344058790,1733259037723,-150.0,7.601e-05,2]
[344058791,1733259037733,-150.0,7.601e-05,2]
[344058792,1733259037743,-150.0,7.601e-05,2]
[344058793,1733259037753,-150.0,7.606e-05,2]
[344058794,1733259037763,-150.0,7.612e-05,2]
[344058795,1733259037775,-150.0,7.613e-05,2]
[344058796,1733259037785,-150.0,7.618e-05,2]
[344058797,1733259037795,-150.0,7.618e-05,2]
[344058798,1733259037805,-150.0,7.619e-05,2]
[344058799,1733259037815,-12116.98979711,7.623e-05,2]
[344058800,1733259037824,-150.0,7.623e-05,2]
[344058801,1733259037834,-150.0,7.625e-05,2]
[344058802,1733259037843,-150.0,7.626e-05,2]
[344058803,1733259037856,-150.0,7.629e-05,2]
[344058804,1733259037865,-150.0,7.637e-05,2]
[344058805,1733259037875,-150.0,7.638e-05,2]
[344058806,1733259037884,-150.0,7.64e-05,2]
[344058807,1733259037894,-150.0,7.641e-05,2]
[344058808,1733259037904,-150.0,7.642e-05,2]
[344058809,1733259037914,-150.0,7.647e-05,2]
[344058810,1733259037923,-150.0,7.649e-05,2]
[344058811,1733259037933,-150.0,7.653e-05,2]
[344058812,1733259037943,-150.0,7.654e-05,2]
[344058813,1733259037952,-150.0,7.66e-05,2]
[344058814,1733259037961,-150.0,7.662e-05,2]
[344058815,1733259037971,-150.0,7.666e-05,2]
[344058816,1733259037980,-150.0,7.67e-05,2]
[344058817,1733259037990,-434.85079185,7.673e-05,2]
[344058818,1733259037999,-183.99309215,7.673e-05,2]
[344058819,1733259038009,-150.0,7.675e-05,2]
[344058820,1733259038019,-150.0,7.675e-05,2]
[344058821,1733259038028,-150.0,7.677e-05,2]
[344058823,1733259038037,-150.0,7.678e-05,2]
[344058825,1733259038047,-28.35150849,7.68e-05,2]
[344058855,1733259039059,-947.47049151,7.68e-05,2]
[344058856,1733259039069,-150.0,7.682e-05,2]
[344058857,1733259039079,-150.0,7.683e-05,2]
[344058858,1733259039088,-150.0,7.685e-05,2]
[344058859,1733259039098,-2658.8122491,7.69e-05,2]
[344058860,1733259039107,-1665.8183065,7.69e-05,2]
[344058861,1733259039117,-150.0,7.692e-05,2]
[344058862,1733259039130,-2471.7707017,7.695e-05,2]
[344058863,1733259039139,-1548.6316816,7.695e-05,2]
[344058864,1733259039150,-150.0,7.697e-05,2]
[344058865,1733259039159,-150.0,7.697e-05,2]
[344058866,1733259039169,-150.0,7.697e-05,2]
[344058867,1733259039178,-150.0,7.699e-05,2]
[344058868,1733259039189,-1105.05366584,7.699e-05,2]
[344058869,1733259039198,-2000.0,7.699e-05,2]
[344058870,1733259039208,-1355.55293552,7.699e-05,2]
[344058871,1733259039220,-311.67,7.699e-05,2]
[344058874,1733259039583,-7309.54237623,7.699e-05,2]
[344058875,1733259039593,-387.91681206,7.699e-05,2]
[344058876,1733259039603,-1297.84,7.699e-05,2]
[344058877,1733259039615,-4168.10586171,7.7e-05,2]
[344058878,1733259039647,-6810.53799649,7.7e-05,2]
[344058879,1733259039663,-26340.4588,7.7e-05,2]
[344058880,1733259039675,-1953.84826656,7.7e-05,2]
[344058881,1733259040490,-9493.6494,7.7e-05,2]
[344058882,1733259040531,-562.43937341,7.7e-05,2]
[344058883,1733259040620,-902.08689374,7.7e-05,2]
[344058884,1733259040632,-150866.06151436,7.7e-05,2]
[344058885,1733259040643,-359.13663716,7.7e-05,2]
[344058896,1733259042677,-500.0,7.673e-05,2]
[344058899,1733259042687,-8948.96006506,7.7e-05,2]
[344058906,1733259042779,-5572.5,7.7e-05,2]
[344058907,1733259042790,-4385.39074341,7.7e-05,2]
[344058908,1733259042878,-4922.81515142,7.7e-05,2]
[344058909,1733259042889,-5991.67620003,7.7e-05,2]
[344058910,1733259042936,-7535.83080462,7.7e-05,2]
[344058911,1733259042947,-1758.83189176,7.7e-05,2]
[344058912,1733259042959,-19767.48947281,7.7e-05,2]
[344058913,1733259042970,-13353.13870491,7.7e-05,2]
[344058914,1733259042982,-3784.02319168,7.7e-05,2]
[344058915,1733259043007,-44213.79,7.7e-05,2]
[344058916,1733259043050,-6731.15111184,7.7e-05,2]
[344058923,1733259045635,-108359.16474895,7.7e-05,2]
[344058924,1733259045651,-263692.14799904,7.7e-05,2]
[344058925,1733259045662,-14311.1,7.7e-05,2]
[344058926,1733259045693,-901.27394999,7.7e-05,2]
[344058927,1733259045704,-6492.75709106,7.7e-05,2]
[344058928,1733259045751,-254.2391421,7.7e-05,2]
[344058929,1733259045812,-6701.25230836,7.7e-05,2]
[344058930,1733259045926,-950.11343769,7.7e-05,2]
[344058936,1733259196121,213.43,7.061e-05,2]
[344058937,1733259198219,1048.77,7.061e-05,2]
[344058938,1733259206419,159.6,5.649e-05,2]
[344058939,1733259214847,250.0,7.061e-05,2]
[344058940,1733259331100,567.13,7.022e-05,2]
[344058941,1733259364502,2367.56,6.98e-05,2]
[344058942,1733259421349,1758.16,6.98e-05,2]
[344058943,1733259447492,3350.2,6.981e-05,2]
[344058944,1733259607406,1907.15,6.937e-05,2]
[344058945,1733259640981,200.0,6.913e-05,2]
[344058946,1733259829185,250.0,6.594e-05,2]
[344058947,1733259860769,250.0,6.594e-05,2]
[344058948,1733259925463,150.0,6.929e-05,2]
[344058953,1733259993902,167.27,6.597e-05,2]
[344058972,1733260231982,-1548.0,7.4e-05,2]
[344058973,1733260231992,-150.0,7.427e-05,2]
[344058974,1733260232001,-150.0,7.431e-05,2]
[344058975,1733260232010,-144.85182177,7.432e-05,2]
[344058976,1733260232075,-5.14817823,7.432e-05,2]
[344058977,1733260232084,-150.0,7.435e-05,2]
[344058978,1733260232093,-150.0,7.436e-05,2]
[344058979,1733260232103,-150.0,7.438e-05,2]
[344058980,1733260232112,-150.0,7.439e-05,2]
[344058981,1733260232121,-150.0,7.45e-05,2]
[344058982,1733260232132,-150.0,7.455e-05,2]
[344058983,1733260232141,-150.0,7.463e-05,2]
[344058984,1733260232150,-150.0,7.464e-05,2]
[344058985,1733260232160,-500.0,7.479e-05,2]
[344058986,1733260232169,-150.0,7.482e-05,2]
[344058987,1733260232179,-150.0,7.486e-05,2]
[344058988,1733260232188,-150.0,7.494e-05,2]
[344058989,1733260232197,-150.0,7.495e-05,2]
[344058990,1733260232206,-150.0,7.499e-05,2]
[344058991,1733260232216,-150.72,7.5e-05,2]
[344058992,1733260232225,-150.0,7.507e-05,2]
[344058993,1733260232235,-150.0,7.508e-05,2]
[344058994,1733260232245,-150.0,7.515e-05,2]
[344058995,1733260232254,-150.0,7.515e-05,2]
[344058996,1733260232264,-150.0,7.517e-05,2]
[344058997,1733260232274,-150.0,7.521e-05,2]
[344058998,1733260232284,-150.0,7.526e-05,2]
[344058999,1733260232294,-73.17327911,7.528e-05,2]
[344059000,1733260232319,-76.82672089,7.528e-05,2]
[344059001,1733260232328,-150.0,7.528e-05,2]
[344059002,1733260232338,-66.52368047,7.539e-05,2]
[344059003,1733260232350,-83.47631953,7.539e-05,2]
[344059004,1733260232360,-150.0,7.544e-05,2]
[344059005,1733260232369,-402.05215319,7.546e-05,2]
[344059006,1733260232380,-150.0,7.546e-05,2]
[344059007,1733260232390,-150.0,7.549e-05,2]
[344059008,1733260232399,-150.0,7.555e-05,2]
[344059009,1733260232409,-150.0,7.562e-05,2]
[344059010,1733260232419,-150.0,7.566e-05,2]
[344059011,1733260232428,-150.0,7.577e-05,2]
[344059012,1733260232437,-150.0,7.579e-05,2]
[344059013,1733260232447,-150.0,7.581e-05,2]
[344059018,1733260232821,-150.0,7.584e-05,2]
[344059019,1733260232832,-150.0,7.588e-05,2]
[344059020,1733260232842,-150.0,7.594e-05,2]
[344059021,1733260232851,-150.0,7.596e-05,2]
[344059022,1733260232860,-150.0,7.599e-05,2]
[344059023,1733260232870,-1959.58777661,7.6e-05,2]
[344059024,1733260232902,-972.9520437,7.6e-05,2]
[344059025,1733260232913,-673.743518,7.6e-05,2]
[344059026,1733260232926,-1298.58063,7.6e-05,2]
[344059027,1733260232937,-1078.47095385,7.6e-05,2]
[344059028,1733260233052,-16891.19603944,7.6e-05,2]
[344059029,1733260233062,-2500.0,7.6e-05,2]
[344059030,1733260233072,-150.0,7.607e-05,2]
[344059031,1733260233082,-150.0,7.619e-05,2]
[344059032,1733260233091,-12116.98979711,7.623e-05,2]
[344059033,1733260233101,-566.0,7.624e-05,2]
[344059034,1733260233111,-630.0,7.624e-05,2]
[344059035,1733260233120,-211.549,7.624e-05,2]
[344059036,1733260233130,-195.362,7.624e-05,2]
[344059037,1733260233140,-2003.0,7.624e-05,2]
[344059038,1733260233151,-1893.0,7.624e-05,2]
[344059039,1733260233162,-563.0,7.624e-05,2]
[344059040,1733260233173,-3760.0,7.624e-05,2]
[344059041,1733260233183,-816.0,7.624e-05,2]
[344059042,1733260233194,-1252.0,7.624e-05,2]
[344059043,1733260233204,-3528.0,7.624e-05,2]
[344059044,1733260233213,-535.0,7.624e-05,2]
[344059045,1733260233223,-975.0,7.624e-05,2]
[344059046,1733260233232,-1097.0,7.624e-05,2]
[344059047,1733260233242,-1166.0,7.624e-05,2]
[344059048,1733260233252,-5962.0,7.624e-05,2]
[344059049,1733260233263,-150.0,7.624e-05,2]
[344059050,1733260233273,-13709.0,7.624e-05,2]
[344059051,1733260233283,-150.0,7.624e-05,2]
[344059052,1733260233293,-150.0,7.641e-05,2]
[344059053,1733260233303,-150.0,7.644e-05,2]
[344059054,1733260233313,-150.0,7.649e-05,2]
[344059055,1733260233323,-150.0,7.656e-05,2]
[344059056,1733260233333,-150.0,7.66e-05,2]
[344059057,1733260233344,-1000.0,7.661e-05,2]
[344059058,1733260233353,-1000.0,7.661e-05,2]
[344059059,1733260233363,-1000.0,7.661e-05,2]
[344059060,1733260233374,-1000.0,7.661e-05,2]
[344059061,1733260233384,-1000.0,7.661e-05,2]
[344059062,1733260233394,-1000.0,7.661e-05,2]
[344059063,1733260233403,-1000.0,7.661e-05,2]
[344059064,1733260233413,-1000.0,7.661e-05,2]
[344059065,1733260233423,-1000.0,7.661e-05,2]
[344059066,1733260233432,-1000.0,7.661e-05,2]
[344059067,1733260233442,-1000.0,7.661e-05,2]
[344059068,1733260233452,-1000.0,7.661e-05,2]
[344059069,1733260233462,-1000.0,7.661e-05,2]
[344059070,1733260233472,-726.5652,7.661e-05,2]
[344059071,1733260233482,-780.658,7.666e-05,2]
[344059072,1733260233492,-150.0,7.666e-05,2]
[344059073,1733260233503,-150.0,7.667e-05,2]
[344059074,1733260233512,-150.0,7.669e-05,2]
[344059075,1733260233522,-62314.0,7.671e-05,2]
[344059076,1733260233532,-500.0,7.673e-05,2]
[344059077,1733260233541,-372.04475441,7.673e-05,2]
[344059078,1733260233551,-163.50024358,7.673e-05,2]
[344059079,1733260233562,-500.0,7.673e-05,2]
[344059080,1733260233572,-503.9657909,7.673e-05,2]
[344059081,1733260233582,-160.93834008,7.673e-05,2]
[344059082,1733260233593,-624.98035239,7.673e-05,2]
[344059083,1733260233603,-179.3945168,7.673e-05,2]
[344059084,1733260233612,-500.0,7.673e-05,2]
[344059085,1733260233623,-159.91042766,7.673e-05,2]
[344059086,1733260233632,-150.0,7.676e-05,2]
[344059087,1733260233642,-150.0,7.679e-05,2]
[344059088,1733260233652,-150.0,7.683e-05,2]
[344059089,1733260233662,-630.5113119,7.689e-05,2]
[344059090,1733260233671,-1010.6345284,7.689e-05,2]
[344059091,1733260233681,-1000.0,7.69e-05,2]
[344059092,1733260233692,-247.0,7.69e-05,2]
[344059093,1733260233702,-1000.0,7.69e-05,2]
[344059094,1733260233712,-1000.0,7.69e-05,2]
[344059095,1733260233721,-1000.0,7.69e-05,2]
[344059096,1733260233731,-1000.0,7.69e-05,2]
[344059097,1733260233740,-150.0,7.691e-05,2]
[344059098,1733260233750,-150.0,7.693e-05,2]
[344059099,1733260233761,-713.150819,7.695e-05,2]
[344059100,1733260233771,-1140.8252059,7.695e-05,2]
[344059101,1733260233781,-150.0,7.696e-05,2]
[344059102,1733260233790,-150.0,7.696e-05,2]
[344059103,1733260233801,-150.0,7.698e-05,2]
[344059104,1733260233810,-150.0,7.698e-05,2]
[344059105,1733260233820,-150.0,7.698e-05,2]
[344059106,1733260233830,-150.0,7.698e-05,2]
[344059107,1733260233840,-150.0,7.698e-05,2]
[344059108,1733260233850,-150.0,7.698e-05,2]
[344059109,1733260233860,-150.0,7.698e-05,2]
[344059110,1733260233869,-150.0,7.698e-05,2]
[344059111,1733260233880,-150.0,7.698e-05,2]
[344059112,1733260233893,-150.0,7.698e-05,2]
[344059113,1733260233903,-150.0,7.698e-05,2]
[344059114,1733260233913,-150.0,7.698e-05,2]
[344059115,1733260233923,-150.0,7.698e-05,2]
[344059116,1733260233934,-150.0,7.698e-05,2]
[344059117,1733260233944,-150.0,7.698e-05,2]
[344059118,1733260233953,-150.0,7.698e-05,2]
[344059119,1733260233965,-150.0,7.698e-05,2]